[Event "XVI Memorial Ezequiel Martin 2024"]
[Site "Mollet"]
[Date "2024.06.09"]
[Round "1.1"]
[White "Narciso Dublan, Marc"]
[Black "Colomer Gomez, Jordi"]
[Result "1-0"]
[ECO "C44"]
[WhiteElo "2432"]
[BlackElo "1932"]
[Annotator "RC"]
[PlyCount "81"]
[EventDate "2024.06.01"]
[EventType "swiss"]
[EventCountry "ESP"]
[SourceTitle "playchess.com"]
[Source "ChessBase"]
[SourceQuality "1"]
[TimeControl "900+5"]

1. e4 {[%emt 0:00:03]} e5 {[%emt 0:00:02]} 2. Nf3 {[%emt 0:00:02]} Nc6 {[%emt 0:00:02]} 3. g3 {[%emt 0:00:03]} Bc5 {[%emt 0:01:02]} 4. Bg2 {[%emt 0:00:04]} d6 {[%emt 0:00:26]} 5. O-O {[%emt 0:00:35]} Nf6 {[%emt 0:03:38]} 6. d3 {[%emt 0:00:33]} O-O {[%emt 0:00:33]} 7. c3 {[%emt 0:00:03]} Bg4 {[%emt 0:00:49]} 8. h3 {[%emt 0:00:11]} Bh5 {[%emt 0:00:10]} 9. Nbd2 {[%emt 0:01:04]} a5 {[%emt 0:00:20]} 10. a4 {[%emt 0:13:17]} Re8 {[%emt 0:00:28]} 11. Nc4 {[%emt 0:00:00]} h6 {[%emt 0:08:30]} 12. Be3 {[%emt 0:00:00]} Bxe3 {[%emt 0:00:00]} 13. Nxe3 {[%emt 0:00:00]} d5 {[%emt 0:00:00]} 14. exd5 {[%emt 0:00:00]} Nxd5 {[%emt 0:00:00]} 15. Re1 {[%emt 0:00:00]} Nf6 {[%emt 0:00:20]} 16. Qb3 {[%emt 0:00:00]} Rb8 {[%emt 0:00:00]} 17. Rad1 {[%emt 0:00:00]} Qc8 {[%emt 0:00:00]} 18. g4 {[%emt 0:00:00]} Bg6 {[%emt 0:00:00]} 19. Nh4 {[%emt 0:00:00]} Bh7 {[%emt 0:00:00]} 20. Nhf5 {[%emt 0:00:00]} Qe6 {[%emt 0:00:00]} 21. Qxe6 {[%emt 0:00:00]} Rxe6 {[%emt 0:00:00]} 22. d4 {[%emt 0:01:00]} exd4 {[%emt 0:00:00]} 23. Nxd4 {[%emt 0:00:00]} Nxd4 {[%emt 0:00:00]} 24. Rxd4 {[%emt 0:00:00]} c6 {[%emt 0:00:00]} 25. Red1 {[%emt 0:00:00]} Rbe8 {[%emt 0:00:00]} 26. Bf1 {[%emt 0:00:00]} g5 {[%emt 0:00:00]} 27. Bc4 {[%emt 0:00:00]} Re5 {[%emt 0:00:00]} 28. Rd6 {[%emt 0:00:00]} Kg7 {[%emt 0:00:00]} 29. Bd3 {[%emt 0:00:00]} Bg6 {[%emt 0:00:00]} 30. Bxg6 {[%emt 0:00:00]} fxg6 {[%emt 0:00:00]} 31. Kf1 {[%emt 0:00:00]} h5 {[%emt 0:00:00]} 32. Rd8 {[%emt 0:00:50]} Rxd8 {[%emt 0:00:00]} 33. Rxd8 {[%emt 0:00:00]} Re8 {[%emt 0:01:30]} 34. Rxe8 {[%emt 0:00:00]} Nxe8 {[%emt 0:00:00]} 35. Nc4 {[%emt 0:00:15]} Kf6 {[%emt 0:00:00]} 36. Ke2 {[%emt 0:00:00]} Ng7 {[%emt 0:00:00]} 37. Nxa5 {[%emt 0:00:00]} Ne6 {[%emt 0:00:00]} 38. Nxb7 {[%emt 0:00:00]} Nf4+ {[%emt 0:00:00]} 39. Kf3 {[%emt 0:00:00]} Ke7 {[%emt 0:00:00]} 40. gxh5 {[%emt 0:00:25]} gxh5 {[%emt 0:00:00]} 41. h4 {[%emt 0:00:05]} 1-0

[Event "XVI Memorial Ezequiel Martin 2024"]
[Site "Mollet"]
[Date "2024.06.09"]
[Round "1.2"]
[White "Pous Garriga, Antoni"]
[Black "Garriga Cazorla, Pere"]
[Result "0-1"]
[ECO "A04"]
[WhiteElo "1862"]
[BlackElo "2471"]
[Annotator "TA"]
[PlyCount "64"]
[EventDate "2024.06.01"]
[EventType "swiss"]
[EventCountry "ESP"]
[SourceTitle "playchess.com"]
[Source "ChessBase"]
[SourceQuality "1"]
[TimeControl "900+5"]

{[%evp 17,64,-16,-2,0,-2,-8,22,27,52,62,80,82,79,90,80,27,35,21,20,18,29,26,26,18,75,73,77,62,148,0,0,-69,-8,-7,-7,-94,-89,-97,-103,-87,-87,-762,-761,-626,-620,-999,-975,-902,-901]} 1. e4 {[%emt 0:00:02]} c5 {[%emt 0:00:02]} 2. g3 {[%emt 0:00:09]} Nc6 {[%emt 0:00:03]} 3. Bg2 {[%emt 0:00:03]} g6 {[%emt 0:00:11]} 4. c3 {[%emt 0:00:02]} Bg7 {[%emt 0:00:01]} 5. Nf3 {[%emt 0:00:11]} e5 {[%emt 0:00:10]} 6. d3 {[%emt 0:00:15]} Nge7 {[%emt 0:00:02]} 7. O-O {[%emt 0:00:08]} O-O {[%emt 0:00:02]} 8. Re1 {[%emt 0:00:50]} h6 {[%emt 0:00:05]} 9. Be3 {[%emt 0:00:20]} d6 {[%emt 0:00:02]} 10. Qd2 {[%emt 0:00:15]} Kh7 {[%emt 0:00:02]} 11. d4 {[%emt 0:00:52]} cxd4 {[%emt 0:00:35]} 12. cxd4 {[%emt 0:00:08] The position is equal.} Bg4 {[%emt 0:00:41] [#] ...Bxf3 is the strong threat.} 13. d5 {[%emt 0:00:35]} Bxf3 {[%emt 0:00:09]} 14. Bxf3 {[%emt 0:00:05]} Nd4 {[%emt 0:00:01]} 15. Bxd4 {[%emt 0:01:41]} exd4 {[%emt 0:00:02] Black is weak on the light squares} 16. Qd3 {[%emt 0:00:56]} ({White should play} 16. Na3 $16) 16... Qb6 {[%emt 0:00:02]} 17. Nd2 {[%emt 0:00:18]} Qxb2 {[%emt 0:01:03]} 18. Rab1 $1 {[%emt 0:03:27]} Qc3 {[%emt 0:00:02]} 19. Qxc3 {[%emt 0:00:13]} dxc3 {[%emt 0:00:02]} 20. Nc4 {[%emt 0:00:01]} b6 {[%emt 0:05:54]} (20... c2 $11 21. Rbc1 Rfd8) 21. Nxd6 $16 {[%emt 0:00:51]} Rad8 {[%emt 0:00:01]} (21... c2 22. Rbc1 Nc8 23. Nc4 $16) 22. e5 {[%emt 0:02:05]} f6 {[%emt 0:01:15]} (22... g5 $14) 23. exf6 {[%emt 0:00:44]} ({White must play} 23. Nb7 $16 fxe5 24. Nxd8 Rxd8 25. Rb3) 23... Bxf6 $11 {[%emt 0:00:06]} 24. Ne4 {[%emt 0:00:17]} ({Better is} 24. Re6 $11) 24... Nxd5 {[%emt 0:00:29]} (24... Rxd5 $2 {is the wrong capture.} 25. Nxf6+ Kg7 26. Nxd5 $18) (24... Bg7 $1 $15 25. Bd1 (25. d6 $2 Nf5 $19) 25... Nxd5 (25... Rxd5 26. Nxc3 Bxc3 27. Rxe7+ Kh8 28. Re2 $15)) 25. Nxf6+ {[%emt 0:00:10]} Rxf6 {[%emt 0:00:25]} 26. Bxd5 {[%emt 0:00:09]} (26. Kg2 $11 {remains equal.}) 26... Rxd5 $15 {[%emt 0:00:01][%mdl 4096] Endgame. KRR-KRR} 27. Re7+ {[%emt 0:00:03]} Kg8 {[%emt 0:00:01] [#] aiming for ...c2.} 28. Rc7 {[%emt 0:00:18][%cal Ob1e1]} Rd2 {[%emt 0:00:35][%csl LRa2,LRf2] Strongly threatening ...c2.} 29. f4 $2 {[%emt 0:00:14][%mdl 8192] Now White is beyond hope.} (29. Re1 $17) 29... c2 $19 {[%emt 0:00:57] Black is clearly winning.} ({Less strong is} 29... Rxa2 30. Rxc3 Kg7 31. Rd3 $17) 30. Re1 {[%emt 0:00:41]} Rf7 {[%emt 0:00:10]} 31. Re8+ {[%emt 0:00:25]} Kg7 {[%emt 0:00:03]} 32. Rcc8 {[%emt 0:00:18]} Rd1+ {[%emt 0:00:47] Weighted Error Value: White=0.65/Black=0.19 (very precise) .  Loses game:     	White=1     	---        Mistake:       	White=4     	Black=3      Inaccurate:     	---       	Black=1      OK:         	White=5     	Black=5      Best:        	White=5     	Black=2      Strong:       	White=1     	---} 0-1

[Event "XVI Memorial Ezequiel Martin 2024"]
[Site "Mollet"]
[Date "2024.06.09"]
[Round "1.3"]
[White "Diaz Camallonga, Carles"]
[Black "Ballo Serrano, Jan"]
[Result "1-0"]
[ECO "B28"]
[WhiteElo "2478"]
[BlackElo "1917"]
[Annotator "TA"]
[PlyCount "89"]
[EventDate "2024.06.01"]
[EventType "swiss"]
[EventCountry "ESP"]
[SourceTitle "playchess.com"]
[Source "ChessBase"]
[SourceQuality "1"]
[TimeControl "900+5"]

{[%evp 14,89,14,12,21,5,24,0,6,5,12,6,26,24,32,29,28,6,18,11,51,0,0,0,19,0,8,0,27,16,37,41,48,57,51,39,58,58,64,41,118,119,116,112,179,190,225,220,231,216,217,0,0,0,65,74,67,60,156,156,159,162,237,229,282,280,288,294,517,510,531,533,493,434,637,570,894,772]} 1. e4 {[%emt 0:00:09]} c5 {[%emt 0:00:18]} 2. Nf3 {[%emt 0:00:03]} a6 {[%emt 0:00:01]} 3. c4 {[%emt 0:00:03]} Nc6 {[%emt 0:00:02]} 4. d4 {[%emt 0:00:04]} cxd4 {[%emt 0:00:02]} 5. Nxd4 {[%emt 0:00:02]} e5 {[%emt 0:00:02]} 6. Nc2 {[%emt 0:00:18]} Nf6 {[%emt 0:00:11]} 7. Nc3 {[%emt 0:00:02]} Bc5 {[%emt 0:00:02]} 8. Be2 {[%emt 0:00:06]} d6 {[%emt 0:00:03]} 9. O-O {[%emt 0:00:40]} O-O {[%emt 0:00:31]} 10. Bg5 {[%emt 0:00:57]} Be6 {[%emt 0:04:48] The position is equal.} 11. Qd2 {[%emt 0:04:57]} h6 {[%emt 0:00:41]} 12. Be3 {[%emt 0:00:01]} Bxe3 {[%emt 0:00:11]} 13. Qxe3 {[%emt 0:00:08]} Qa5 {[%emt 0:02:02]} 14. Rfd1 {[%emt 0:01:57]} Rfd8 {[%emt 0:00:33]} 15. Rd2 {[%emt 0:00:23]} Rac8 {[%emt 0:01:20]} 16. Rad1 {[%emt 0:00:11]} Qc7 {[%emt 0:00:54]} 17. Na3 {[%emt 0:00:38]} ({Better is} 17. b3 $14) 17... Nd4 $11 {[%emt 0:01:00]} 18. Bf1 {[%emt 0:00:03]} Nd7 {[%emt 0:01:50]} 19. h3 {[%emt 0:00:45]} Nb6 {[%emt 0:00:24]} 20. b3 {[%emt 0:00:17]} Nd7 {[%emt 0:00:30][%cal Ob7b5,Bb6d7,Bd7b8,Bb8c6][%mdl 32]} 21. Ne2 {[%emt 0:00:57]} Nxe2+ {[%emt 0:00:39]} 22. Bxe2 {[%emt 0:00:01]} Nb8 {[%emt 0:00:05]} 23. Nc2 {[%emt 0:01:11]} Nc6 {[%emt 0:00:04]} 24. Bg4 {[%emt 0:00:11]} Rb8 {[%emt 0:00:17]} 25. Qc3 {[%emt 0:00:29]} Qe7 {[%emt 0:00:12]} 26. Rd3 {[%emt 0:00:18]} g6 {[%emt 0:00:18]} (26... Rbc8 $14) 27. Bxe6 $16 {[%emt 0:00:08]} Qxe6 {[%emt 0:00:08]} 28. Qd2 {[%emt 0:00:01]} b5 {[%emt 0:00:06]} (28... Kg7 $16 {was necessary.} 29. a4 (29. Rxd6 Rxd6 30. Qxd6 Rd8 $17) 29... h5) 29. cxb5 $18 {[%emt 0:00:06]} (29. Rxd6 Rxd6 30. Qxd6 Rd8 (30... bxc4 $2 31. Qxe6 fxe6 32. bxc4 $18) 31. Qxd8+ Nxd8 32. Rxd8+ Kg7) 29... axb5 {[%emt 0:00:06]} 30. Qxh6 {[%emt 0:00:07]} b4 {[%emt 0:00:08]} 31. Qd2 {[%emt 0:02:27]} Ra8 {[%emt 0:00:05]} 32. Rxd6 $2 {[%emt 0:00:00] [#]} (32. Ne3 $18) 32... Rxd6 $11 {[%emt 0:00:01]} 33. Qxd6 {[%emt 0:00:00]} Rxa2 {[%emt 0:00:05]} (33... Rd8 $11 34. Qxd8+ Nxd8 35. Rxd8+ Kg7) 34. Qxe6 $14 {[%emt 0:00:00]} (34. Nxb4 $2 {loses.} Qxd6 35. Rxd6 Nxb4 $19) 34... fxe6 $18 {[%emt 0:00:01][%mdl 4096] Endgame. KRN-KRN} 35. Ne3 {[%emt 0:00:00]} Rb2 {[%emt 0:00:13]} (35... Nd4 $14) 36. Rd6 $16 {[%emt 0:00:00]} Nd4 {[%emt 0:00:05] [#]} 37. Nc4 $1 {[%emt 0:00:00][%csl LRb2,LRe5]} Rxb3 {[%emt 0:00:04]} (37... Rb1+ {was worth a try.} 38. Kh2 g5 39. Nxe5 Nxb3) 38. Nxe5 $18 {[%emt 0:00:00]} Ne2+ {[%emt 0:00:01]} 39. Kh2 {[%emt 0:00:00]} Rb1 {[%emt 0:00:07]} 40. Rxe6 {[%emt 0:00:00]} ({Weaker is} 40. Nxg6 b3 $14) 40... b3 $2 {[%emt 0:00:04]} (40... g5 41. Rg6+ Kh7 42. Rxg5 b3) 41. Rxg6+ {[%emt 0:00:00] White is clearly winning.} Kf8 {[%emt 0:00:01]} 42. Rb6 {[%emt 0:00:00]} Nd4 {[%emt 0:00:13]} 43. Nc6 {[%emt 0:00:00]} Nxc6 {[%emt 0:00:06]} (43... Ne6 $142 44. Na5 b2) 44. Rxc6 {[%emt 0:00:00]} b2 {[%emt 0:00:02]} 45. Rb6 {[%emt 0:00:00] Weighted Error Value: White=0.15 (very precise) /Black=0.35.  Missed win:     	White=1     	---        Mistake:       	White=1     	Black=7      Inaccurate:     	---       	Black=3      OK:         	White=15    	Black=5      Best:        	White=3     	---        Strong:       	White=1     	---} 1-0

[Event "XVI Memorial Ezequiel Martin 2024"]
[Site "Mollet"]
[Date "2024.06.09"]
[Round "1.4"]
[White "Lopez Milan, David"]
[Black "Ayats Llobera, Gerard"]
[Result "0-1"]
[ECO "C25"]
[WhiteElo "1868"]
[BlackElo "2466"]
[Annotator "TA"]
[PlyCount "62"]
[EventDate "2024.06.01"]
[EventType "swiss"]
[EventCountry "ESP"]
[SourceTitle "playchess.com"]
[Source "ChessBase"]
[SourceQuality "1"]
[TimeControl "900+5"]

{[%evp 9,62,0,1,-32,11,-20,-14,-13,12,14,16,10,22,0,0,0,0,-25,-23,-16,-20,-60,-52,-48,-49,-64,-60,-63,-58,-60,-35,-29,-20,-20,-21,-162,-157,-384,-318,-303,-290,-285,-291,-533,-295,-404,-392,-395,-374,-29967,-29968,-29968,-29969,-29969,-7656]} 1. e4 {[%emt 0:15:10]} Nc6 {[%emt 0:07:44]} 2. Nc3 {[%emt 0:00:00]} e5 {[%emt 0:00:20]} 3. Bc4 {[%emt 0:00:00]} d6 {[%emt 0:00:10]} 4. d3 {[%emt 0:00:00]} g6 {[%emt 0:00:08]} 5. Qf3 {[%emt 0:00:00]} Be6 {[%emt 0:00:16]} 6. Nge2 {[%emt 0:00:00]} Bg7 {[%emt 0:00:07]} 7. O-O {[%emt 0:00:00]} Bxc4 {[%emt 0:00:05]} 8. dxc4 {[%emt 0:00:00] The position is equal.} Nge7 {[%emt 0:00:01]} 9. Bg5 {[%emt 0:00:00]} O-O {[%emt 0:00:23]} 10. Bf6 {[%emt 0:00:00]} Qd7 {[%emt 0:00:11]} 11. Bxg7 {[%emt 0:00:00]} Kxg7 {[%emt 0:00:01]} 12. Rad1 {[%emt 0:00:00]} b6 {[%emt 0:00:02]} 13. Kh1 {[%emt 0:00:00]} f5 {[%emt 0:00:06]} 14. Qh3 {[%emt 0:00:00]} Rad8 {[%emt 0:00:06][%cal Ba8d8,Bd8d7,Bd7f7][%mdl 32]} 15. f4 {[%emt 0:00:00]} fxe4 {[%emt 0:00:13]} 16. Qxd7 {[%emt 0:00:00]} Rxd7 {[%emt 0:00:00]} 17. Nxe4 {[%emt 0:00:00]} Nf5 {[%emt 0:00:01]} 18. fxe5 {[%emt 0:00:00]} Nxe5 {[%emt 0:00:06]} 19. b3 {[%emt 0:00:00]} Ne3 {[%emt 0:00:14]} 20. Rxf8 {[%emt 0:00:00][%cal Od1f1] [#] Black must now prevent Rdf1!} Kxf8 {[%emt 0:00:02]} 21. Rd2 {[%emt 0:00:00]} Rf7 {[%emt 0:00:03]} 22. N4g3 {[%emt 0:00:00] Against Rf1+} (22. N2g3 $11 {and White is okay.}) 22... h5 $36 {[%emt 0:00:05][%mdl 2048] aiming for ...h4. Black is in control.} 23. h4 $2 {[%emt 0:00:00] This move loses the game for White.} (23. Ng1 $17 {was worth a try.}) 23... Rf2 {[%emt 0:00:17]} 24. Ne4 {[%emt 0:00:00]} Rf1+ {[%emt 0:00:18]} 25. Ng1 {[%emt 0:00:00]} N5g4 {[%emt 0:00:26] Wards off Rf2+. ...Rf4 would now be deadly.} 26. Re2 $2 {[%emt 0:01:09]} (26. g3 {was the only defense.}) 26... Rc1 {[%emt 0:00:12][%cal Oe3f5] And now ...Nf5! would win.} 27. Nf6 {[%emt 0:00:43]} Nf5 {[%emt 0:00:14][%cal Rf5g3]} (27... Nxf6 $2 28. Rxe3 Rxc2 29. Re2 $19) 28. Nxg4 {[%emt 0:00:04]} hxg4 {[%emt 0:00:27]} 29. Rd2 $2 {[%emt 0:00:11] [#]} (29. Rf2 $19) 29... Ng3+ {[%emt 0:00:01] Black mates.} 30. Kh2 {[%emt 0:00:01]} Nf1+ {[%emt 0:00:01]} 31. Kh1 {[%emt 0:00:02]} Nxd2 {[%emt 0:00:02] Weighted Error Value: White=0.70/Black=0.19 (very precise) .  Loses game:     	White=1     	---        Mistake:       	White=3     	---        Inaccurate:     	White=3     	Black=2      OK:         	White=7     	Black=9      Best:        	White=5     	Black=2} 0-1

[Event "XVI Memorial Ezequiel Martin 2024"]
[Site "Mollet"]
[Date "2024.06.09"]
[Round "1.5"]
[White "Hernandez, Cristian Andres"]
[Black "Marcos Pina, Agustin"]
[Result "1-0"]
[ECO "C10"]
[WhiteElo "2350"]
[BlackElo "1791"]
[Annotator "RC"]
[PlyCount "65"]
[EventDate "2024.06.01"]
[EventType "swiss"]
[EventCountry "ESP"]
[SourceTitle "playchess.com"]
[Source "ChessBase"]
[SourceQuality "1"]
[TimeControl "900+5"]

1. e4 {[%emt 0:00:04]} e6 {[%emt 0:00:02]} 2. d4 {[%emt 0:00:02]} d5 {[%emt 0:00:02]} 3. Nc3 {[%emt 0:00:01]} c5 {[%emt 0:00:03]} 4. exd5 {[%emt 0:00:15]} exd5 {[%emt 0:00:03]} 5. dxc5 {[%emt 0:00:28]} Nf6 {[%emt 0:00:18]} 6. Bb5+ {[%emt 0:00:13]} Nc6 {[%emt 0:00:08]} 7. Qe2+ {[%emt 0:00:37]} Be7 {[%emt 0:00:09]} 8. Bg5 {[%emt 0:00:06]} O-O {[%emt 0:00:07]} 9. O-O-O {[%emt 0:00:03]} a6 {[%emt 0:00:39]} 10. Ba4 {[%emt 0:00:34]} Bxc5 {[%emt 0:00:14]} 11. Rxd5 {[%emt 0:01:32]} Qe7 {[%emt 0:02:48]} 12. Bxf6 {[%emt 0:00:15]} Qxf6 {[%emt 0:01:59]} 13. Rxc5 {[%emt 0:00:31]} Nd4 {[%emt 0:00:15]} 14. Qd2 {[%emt 0:00:42]} Bf5 {[%emt 0:00:19]} 15. Nd5 {[%emt 0:00:48]} Qh4 {[%emt 0:00:10]} 16. Rc4 {[%emt 0:00:44]} Ne2+ {[%emt 0:00:50]} 17. Qxe2 {[%emt 0:00:03]} Qh6+ {[%emt 0:00:33]} 18. Qe3 {[%emt 0:00:04]} Qxe3+ {[%emt 0:00:58]} 19. Nxe3 {[%emt 0:00:02]} Be6 {[%emt 0:00:05]} 20. Rc7 {[%emt 0:00:01]} b5 {[%emt 0:00:10]} 21. Bb3 {[%emt 0:00:02]} Rfe8 {[%emt 0:00:47]} 22. Nf3 {[%emt 0:00:03]} a5 {[%emt 0:00:28]} 23. Rd1 {[%emt 0:00:04]} a4 {[%emt 0:00:09]} 24. Bxe6 {[%emt 0:00:03]} Rxe6 {[%emt 0:00:02]} 25. Rdd7 {[%emt 0:00:02]} Rf8 {[%emt 0:00:44]} 26. Rxf7 {[%emt 0:00:09]} Rxf7 {[%emt 0:00:52]} 27. Rxf7 {[%emt 0:00:03]} Kxf7 {[%emt 0:00:04]} 28. Ng5+ {[%emt 0:00:02]} Ke7 {[%emt 0:00:12]} 29. Nd5+ {[%emt 0:00:01]} Kd6 {[%emt 0:00:09]} 30. Nxe6 {[%emt 0:00:02]} Kxe6 {[%emt 0:00:06]} 31. Nc7+ {[%emt 0:00:02]} Ke5 {[%emt 0:00:08]} 32. Nxb5 {[%emt 0:00:03]} g5 {[%emt 0:00:04]} 33. Nc3 {[%emt 0:10:09]} 1-0

[Event "XVI Memorial Ezequiel Martin 2024"]
[Site "Mollet"]
[Date "2024.06.09"]
[Round "1.6"]
[White "Montemayor Montemayor, Gera"]
[Black "Aloma Vidal, Robert"]
[Result "0-1"]
[ECO "B21"]
[WhiteElo "1795"]
[BlackElo "2428"]
[Annotator "RC"]
[PlyCount "91"]
[EventDate "2024.06.01"]
[EventType "swiss"]
[EventCountry "ESP"]
[SourceTitle "playchess.com"]
[Source "ChessBase"]
[SourceQuality "1"]
[TimeControl "900+5"]

1. e4 {[%emt 0:00:15]} c5 {[%emt 0:00:02]} 2. d4 {[%emt 0:00:16]} cxd4 {[%emt 0:00:02]} 3. Nf3 {[%emt 0:00:07]} g6 {[%emt 0:00:32]} 4. Bc4 {[%emt 0:00:56]} Bg7 {[%emt 0:00:09]} 5. O-O {[%emt 0:00:14]} Nc6 {[%emt 0:00:06]} 6. c3 {[%emt 0:00:02]} d3 {[%emt 0:01:41]} 7. Qxd3 {[%emt 0:01:51]} d6 {[%emt 0:00:36]} 8. Rd1 {[%emt 0:01:02]} Bg4 {[%emt 0:00:49]} 9. Bg5 {[%emt 0:03:06]} Nf6 {[%emt 0:02:22]} 10. Nbd2 {[%emt 0:02:15]} O-O {[%emt 0:00:24]} 11. h3 {[%emt 0:00:33]} Bxf3 {[%emt 0:03:15]} 12. Nxf3 {[%emt 0:00:03]} Qc7 {[%emt 0:00:09]} 13. Qe3 {[%emt 0:00:38]} Rab8 {[%emt 0:01:18]} 14. a4 {[%emt 0:02:47]} a6 {[%emt 0:00:03]} 15. Bh6 {[%emt 0:00:05]} Nd7 {[%emt 0:03:02]} 16. Bxg7 {[%emt 0:00:06]} Kxg7 {[%emt 0:00:02]} 17. h4 {[%emt 0:01:02]} h6 {[%emt 0:01:58]} 18. h5 {[%emt 0:00:06]} Nce5 {[%emt 0:00:00]} 19. Be2 {[%emt 0:00:27]} Qc5 {[%emt 0:00:00]} 20. Qxc5 {[%emt 0:00:12]} Nxf3+ {[%emt 0:00:00]} 21. Bxf3 {[%emt 0:00:02]} Nxc5 {[%emt 0:00:00]} 22. Rd5 {[%emt 0:00:15]} Nd7 {[%emt 0:00:00]} 23. Ra3 {[%emt 0:00:32]} Ne5 {[%emt 0:00:00]} 24. Be2 {[%emt 0:00:02]} g5 {[%emt 0:00:00]} 25. g3 {[%emt 0:00:05]} g4 {[%emt 0:00:00]} 26. Kg2 {[%emt 0:00:03]} Rfc8 {[%emt 0:00:17]} 27. Rb3 {[%emt 0:00:03]} Rc6 {[%emt 0:00:02]} 28. f4 {[%emt 0:00:06]} gxf3+ {[%emt 0:00:02]} 29. Bxf3 {[%emt 0:00:02]} Nc4 {[%emt 0:00:20]} 30. Rd4 {[%emt 0:00:16]} Rc5 {[%emt 0:00:11]} 31. Rb4 {[%emt 0:00:04]} Ne5 {[%emt 0:00:03]} 32. Be2 {[%emt 0:00:01]} a5 {[%emt 0:00:03]} 33. Rb6 {[%emt 0:00:09]} Nd7 {[%emt 0:00:03]} 34. Rb3 {[%emt 0:00:01]} b6 {[%emt 0:00:02]} 35. Bb5 {[%emt 0:00:04]} Ne5 {[%emt 0:00:02]} 36. Ra3 {[%emt 0:00:10]} Ng4 {[%emt 0:00:30]} 37. Ra1 {[%emt 0:00:02]} Rxh5 {[%emt 0:00:00]} 38. Rf1 {[%emt 0:00:03]} Ne3+ {[%emt 0:00:00]} 39. Kf2 {[%emt 0:00:02]} Nxf1 {[%emt 0:00:00]} 40. Kxf1 {[%emt 0:00:02]} Rc8 {[%emt 0:00:00]} 41. Kg2 {[%emt 0:00:12]} Rcc5 {[%emt 0:00:00]} 42. b4 {[%emt 0:00:09]} Rxc3 {[%emt 0:00:00]} 43. bxa5 {[%emt 0:00:01]} bxa5 {[%emt 0:00:00]} 44. Bd7 {[%emt 0:00:06]} Rg5 {[%emt 0:00:00]} 45. g4 {[%emt 0:00:04]} h5 {[%emt 0:00:00]} 46. Rd2 {[%emt 0:00:16]} 0-1

[Event "XVI Memorial Ezequiel Martin 2024"]
[Site "Mollet"]
[Date "2024.06.09"]
[Round "2.1"]
[White "Lobo Pereira, Arami"]
[Black "Narciso Dublan, Marc"]
[Result "0-1"]
[ECO "A95"]
[WhiteElo "1920"]
[BlackElo "2432"]
[Annotator "RC"]
[PlyCount "54"]
[EventDate "2024.06.01"]
[EventType "swiss"]
[EventCountry "ESP"]
[SourceTitle "playchess.com"]
[Source "ChessBase"]
[SourceQuality "1"]
[TimeControl "900+5"]

1. d4 {[%emt 0:00:06]} e6 {[%emt 0:00:01]} 2. c4 {[%emt 0:00:02]} f5 {[%emt 0:00:02]} 3. g3 {[%emt 0:00:04]} Nf6 {[%emt 0:00:01]} 4. Bg2 {[%emt 0:00:03]} d5 {[%emt 0:00:02]} 5. Bf4 {[%emt 0:00:44]} Be7 {[%emt 0:00:10]} 6. Nf3 {[%emt 0:00:11]} O-O {[%emt 0:00:02]} 7. O-O {[%emt 0:14:30]} c6 {[%emt 0:15:22]} 8. Nc3 {[%emt 0:00:05]} Nbd7 {[%emt 0:00:05]} 9. Qd3 {[%emt 0:00:00]} Ne4 {[%emt 0:00:05]} 10. cxd5 {[%emt 0:00:00]} exd5 {[%emt 0:00:00]} 11. Ne5 {[%emt 0:00:00]} Nxe5 {[%emt 0:00:00]} 12. Bxe5 {[%emt 0:00:00]} Be6 {[%emt 0:00:00]} 13. f3 {[%emt 0:00:00]} Nd6 {[%emt 0:00:20]} 14. b3 {[%emt 0:00:30]} Qe8 {[%emt 0:00:00]} 15. e4 {[%emt 0:00:00]} fxe4 {[%emt 0:00:10]} 16. fxe4 {[%emt 0:00:00]} Qg6 {[%emt 0:00:05]} 17. Rxf8+ {[%emt 0:00:00]} Rxf8 {[%emt 0:00:05]} 18. Bxd6 {[%emt 0:00:00]} Bxd6 {[%emt 0:00:00]} 19. Rf1 {[%emt 0:00:00]} Rxf1+ {[%emt 0:00:00]} 20. Bxf1 {[%emt 0:00:00]} dxe4 {[%emt 0:00:00]} 21. Qxe4 {[%emt 0:00:35]} Bf5 {[%emt 0:00:00]} 22. Bc4+ {[%emt 0:00:00]} Kh8 {[%emt 0:00:25]} 23. Qh4 {[%emt 0:00:00]} Qe8 {[%emt 0:00:00]} 24. Qg5 {[%emt 0:00:00]} Bg6 {[%emt 0:00:00]} 25. Kg2 {[%emt 0:00:06]} h6 {[%emt 0:00:15]} 26. Qg4 {[%emt 0:00:02]} Bb4 {[%emt 0:00:00]} 27. Qe2 {[%emt 0:00:13]} Bxc3 {[%emt 0:00:10]} 0-1